fUST/lending_fUST_20260123
["ID","MTS","AMOUNT","RATE_DAILY","PERIOD"]
[403086705,1769143348895,84.64340195,0.0001382,2]
[403086707,1769143364794,395.7406355,0.00013599,2]
[403086708,1769143427617,5000.0,0.0001382,2]
[403086712,1769143434847,170.7390773,0.00013648,2]
[403086723,1769143452156,4348.88688525,0.0001382,2]
[403086724,1769143452182,651.11311475,0.0001382,2]
[403086725,1769143452856,-1090.21382486,0.00013977,2]
[403086730,1769143462299,751.10656644,0.0001382,2]
[403086739,1769143477647,5000.0,0.0001382,2]
[403086740,1769143486517,922.0159328,0.0001382,2]
[403086741,1769143501374,2675.77438601,0.0001382,2]
[403086742,1769143501396,1859.27666019,0.0001382,2]
[403086743,1769143523417,5000.0,0.0001382,2]
[403086744,1769143545416,3140.73333981,0.0001382,2]
[403086745,1769143548075,-1859.26666019,0.0001382,2]
[403086746,1769143567872,2386.75202958,0.0001382,2]
[403086749,1769143691087,183.61,7.849e-05,2]
[403086750,1769143691498,367.22,8.563e-05,2]
[403086751,1769143691918,550.83,9.276e-05,2]
[403086752,1769143692350,734.44,9.99e-05,2]
[403086753,1769143692978,918.05,0.00010703,2]
[403086754,1769143693148,1101.66,0.00011417,2]
[403086755,1769143693534,38.91465004,0.0001213,2]
[403086756,1769143693557,1246.35534996,0.0001213,2]
[403086757,1769143693933,1468.88,0.00012844,2]
[403086758,1769143694341,1652.49,0.00013557,2]
[403086759,1769143725329,-3909.78617514,0.00013977,2]
[403086760,1769143768735,156.9,8.534e-05,2]
[403086761,1769143769137,235.36,9.245e-05,2]
[403086762,1769143769549,313.81,9.956e-05,2]
[403086763,1769143769988,392.26,0.00010667,2]
[403086764,1769143770379,470.71,0.00011378,2]
[403086765,1769143771278,549.16,0.00012089,2]
[403086766,1769143771696,627.61,0.00012801,2]
[403086767,1769143772075,706.07,0.00013512,2]
[403086768,1769143832329,-621.0,0.00014047,2]
[403086769,1769143832339,-197.80806239,0.00014047,2]
[403086770,1769143832348,-170.13697589,0.00014223,2]
[403086772,1769143832359,-614.38302411,0.00014223,2]
[403086774,1769143832368,-299.512,0.00014404,2]
[403086776,1769143832377,-300.0,0.00014597,2]
[403086778,1769143832386,-300.0,0.00014597,2]
[403086780,1769143832395,-300.0,0.00014597,2]
[403086782,1769143832404,-179.0,0.00014597,2]
[403086784,1769143832414,-513.98393483,0.00014597,2]
[403086786,1769143832423,-1929.42800497,0.00014598,2]
[403086788,1769143832432,-4287.71665558,0.00014598,2]
[403086803,1769143840427,-874.72,0.00014598,2]
[403086804,1769143840481,-491.64041845,0.00014598,2]
[403086814,1769143843539,-48786.94527568,0.00014598,2]
[403086815,1769143843550,-16269.3915,0.00014598,2]
[403086818,1769143844257,171.74,0.00012085,2]
[403086819,1769143844456,196.27,0.00012795,2]
[403086820,1769143844962,220.81,0.00013506,2]
[403086844,1769143846426,-245.34,0.00014217,2]
[403086845,1769143846435,-7514.04955212,0.00014598,2]
[403086846,1769143846447,-3942.33136367,0.00014598,2]
[403086847,1769143846482,-361.74034954,0.00014598,2]
[403086850,1769143869459,500.0,0.00013273,2]
[403086851,1769143876555,326.484276,0.00013273,2]
[403086852,1769143877653,500.0,0.00013273,2]
[403086853,1769143878877,500.0,0.00013273,2]
[403086854,1769143878905,500.0,0.00013273,2]
[403086855,1769143879736,500.0,0.00013273,2]
[403086856,1769143879811,500.0,0.00013273,2]
[403086857,1769143880660,205.09849573,0.00013273,2]
[403086858,1769143880831,500.0,0.00013273,2]
[403086859,1769143880998,500.0,0.00013273,2]
[403086860,1769143923946,160.9064804,0.00013699,2]
[403086861,1769143923974,583.72049596,0.00013699,2]
[403086862,1769143927344,502.26093255,0.00013699,2]
[403086863,1769143927371,500.0,0.00013699,2]
[403086864,1769143927396,500.56880236,0.00013699,2]
[403086865,1769143927606,500.0,0.00013273,2]
[403086866,1769143927650,500.0,0.00013699,2]
[403086867,1769143927690,500.0,0.00013699,2]
[403086868,1769143927719,500.0,0.00013273,2]
[403086869,1769143927895,500.0,0.00013273,2]
[403086870,1769143928500,132.150517,0.00013273,2]
[403086871,1769143928522,367.849483,0.00013273,2]
[403086872,1769143930193,501.03791035,0.00013699,2]
[403086873,1769143931276,501.04668777,0.00013699,2]
[403086874,1769143931306,526.19318848,0.00013699,2]
[403086875,1769143931601,502.61860429,0.00013699,2]
[403086876,1769143934529,500.68007132,0.00013699,2]
[403086877,1769143934754,501.33739692,0.00013699,2]
[403086878,1769143935691,500.72362504,0.00013699,2]
[403086880,1769143937134,500.0,0.00013273,2]
[403086881,1769143938025,500.0,0.00013273,2]
[403086882,1769143938053,543.21787469,0.00013699,2]
[403086883,1769143938079,500.0,0.00013699,2]
[403086884,1769143938538,300.0,0.00013673,2]
[403086885,1769143938598,500.0,0.00013699,2]
[403086886,1769143940841,-1000.0,0.00013821,2]
[403086887,1769143940871,-1000.0,0.00013821,2]
[403086888,1769143940901,-1000.0,0.00013821,2]
[403086889,1769143940930,-1000.0,0.00013821,2]
[403086890,1769143940962,-1000.0,0.00013821,2]
[403086891,1769143941179,-394.1425604,0.00013821,2]
[403086893,1769143982909,500.0,0.00013273,2]
[403086894,1769143982967,500.0,0.00013699,2]
[403086895,1769143982997,1000.0,0.00013821,2]
[403086896,1769143983174,500.0,0.00013273,2]
[403086897,1769143983239,1000.0,0.00013821,2]
[403086899,1769143986163,500.0,0.00013699,2]
[403086900,1769143986370,500.0,0.00013273,2]
[403086901,1769143986400,500.0,0.00013273,2]
[403086902,1769143986433,1000.0,0.00013821,2]
[403086903,1769143986463,1000.0,0.00013821,2]
[403086905,1769143988877,500.0,0.00013699,2]
[403086906,1769143989091,500.0,0.00013699,2]
[403086907,1769143989144,500.0,0.00013699,2]
[403086908,1769143989194,500.0,0.00013273,2]
[403086909,1769143989227,211.7248792,0.00013273,2]
[403086910,1769143989250,396.29354387,0.00013273,2]
[403086911,1769143989298,1000.0,0.00013821,2]
[403086912,1769143989327,500.0,0.00013699,2]
[403086915,1769143993355,505.57820228,0.00013273,2]
[403086916,1769143993507,500.0,0.00013699,2]
[403086917,1769143993826,500.0,0.00013699,2]
[403086918,1769143993962,443.94207122,0.00013699,2]
[403086919,1769143994057,500.0,0.00013699,2]
[403086920,1769143995581,159.8573706,0.00013699,2]
[403086922,1769143996117,313.62551045,0.00013699,2]
[403086924,1769143996381,500.0,0.00013699,2]
[403086925,1769143996912,500.0,0.00013273,2]
[403086926,1769143996945,500.0,0.00013699,2]
[403086927,1769143996972,1000.0,0.00013821,2]
[403086928,1769143997767,197.32435589,0.00013273,2]
[403086929,1769143998683,500.0,0.00013699,2]
[403086930,1769143998947,500.0,0.00013699,2]
[403086931,1769143998973,500.0,0.00013699,2]
[403086932,1769143999106,500.0,0.00013273,2]
[403086933,1769143999157,483.38894569,0.00013821,2]
[403086934,1769143999180,516.61105431,0.00013821,2]
[403086935,1769143999217,500.0,0.00013699,2]
[403086936,1769143999509,500.0,0.00013273,2]
[403086937,1769143999535,500.0,0.00013273,2]
[403086938,1769143999578,349.95296507,0.00013821,2]
[403086939,1769143999609,1000.0,0.00013821,2]
[403086941,1769144000136,500.0,0.00013699,2]
[403086942,1769144000162,503.65901574,0.00013699,2]
[403086943,1769144000232,500.0,0.00013699,2]
[403086944,1769144000258,1000.0,0.00013821,2]
[403086945,1769144000311,500.0,0.00013273,2]
[403086946,1769144000458,500.0,0.00013273,2]
[403086947,1769144000507,924.35602029,0.00013821,2]
[403086957,1769144023423,2205.43094459,0.00013821,2]
[403086958,1769144023446,2794.56905541,0.00013821,2]
[403086969,1769144043601,500.0,0.00013699,2]
[403086970,1769144043628,500.0,0.00013273,2]
[403086971,1769144043684,500.0,0.00013699,2]
[403086972,1769144043846,1000.0,0.00013821,2]
[403086974,1769144046816,227.41270487,0.00013699,2]
[403086975,1769144047453,500.0,0.00013273,2]
[403086976,1769144047491,1000.0,0.00013821,2]
[403086977,1769144047563,500.0,0.00013699,2]
[403086978,1769144047618,500.0,0.00013699,2]
[403086979,1769144047676,500.0,0.00013273,2]
[403086980,1769144047711,1000.0,0.00013821,2]
[403086981,1769144047769,478.02823972,0.00013273,2]
[403086982,1769144047797,21.97176028,0.00013273,2]
[403086983,1769144047834,1000.0,0.00013821,2]
[403086984,1769144048327,500.0,0.00013699,2]
[403086986,1769144050889,500.0,0.00013699,2]
[403086988,1769144053249,343.38984212,0.00013699,2]
[403086989,1769144054025,500.0,0.00013699,2]
[403086990,1769144054090,500.0,0.00013699,2]
[403086991,1769144054295,500.0,0.00013699,2]
[403086992,1769144054348,500.0,0.00013273,2]
[403086993,1769144054387,1000.0,0.00013821,2]
[403086996,1769144056971,500.0,0.00013699,2]
[403086997,1769144057305,500.0,0.00013699,2]
[403086998,1769144057332,500.0,0.00013699,2]
[403086999,1769144057907,300.0,0.00013673,2]
[403087005,1769144068287,2834.6483976,0.00013821,2]
[403087024,1769144104039,500.0,0.00013273,2]
[403087028,1769144111689,500.0,0.00013273,2]
[403087029,1769144112286,-347.42013826,0.00013699,2]
[403087030,1769144112308,-152.57986174,0.00013699,2]
[403087032,1769144114070,-347.42013826,0.00013699,2]
[403087033,1769144114104,-500.0,0.00013699,2]
[403087034,1769144114137,-500.0,0.00013699,2]
[403087035,1769144114170,-500.0,0.00013699,2]
[403087036,1769144114203,-500.0,0.00013699,2]
[403087037,1769144114235,-500.0,0.00013699,2]
[403087038,1769144114266,-500.0,0.00013699,2]
[403087039,1769144114297,-500.0,0.00013699,2]
[403087040,1769144114328,-1000.0,0.00013821,2]
[403087041,1769144114574,-293.57106952,0.00013821,2]
[403087043,1769144117565,-297.94773281,0.00013699,2]
[403087044,1769144117589,-69.39161473,0.00013821,2]
[403087047,1769144119543,-187.74085301,0.00013699,2]
[403087048,1769144120927,-500.0,0.00013273,2]
[403087049,1769144120957,-500.0,0.00013273,2]
[403087050,1769144120987,-312.25914699,0.00013699,2]
[403087051,1769144121015,-500.0,0.00013699,2]
[403087052,1769144121043,-500.0,0.00013699,2]
[403087053,1769144121071,-500.0,0.00013699,2]
[403087054,1769144121099,-637.03731575,0.00013821,2]
[403087055,1769144121128,-913.9876182,0.00013821,2]
[403087056,1769144121158,-273.44183812,0.00013821,2]
[403087057,1769144121292,-300.0,0.00013821,2]
[403087059,1769144124334,-206.04173577,0.00013273,2]
[403087060,1769144127002,-293.95826423,0.00013273,2]
[403087061,1769144127024,-20.31200096,0.00013699,2]
[403087063,1769144127255,-479.68799904,0.00013699,2]
[403087064,1769144127286,-500.0,0.00013699,2]
[403087065,1769144127318,-368.60691874,0.00013699,2]
[403087066,1769144127348,-500.0,0.00013699,2]
[403087067,1769144127377,-426.55816188,0.00013821,2]
[403087068,1769144127405,-1000.0,0.00013821,2]
[403087069,1769144127435,-1284.95223828,0.00013821,2]
[403087074,1769144146169,-880.39936412,0.00013821,2]
[403087075,1769144146198,-300.0,0.00013989,2]
[403087076,1769144146226,-300.0,0.00013989,2]
[403087077,1769144146255,-1200.0,0.00013989,2]
[403087080,1769144152541,-9532.58432883,0.0001399,2]
[403087081,1769144152665,-10000.01,0.0001399,2]
[403087084,1769144155679,-5000.0,0.0001385,2]
[403087085,1769144155715,-0.01,0.0001399,2]
[403087086,1769144155839,-10000.01,0.0001399,2]
[403087089,1769144159295,-10000.01,0.0001399,2]
[403087090,1769144159409,-10000.01,0.0001399,2]
[403087094,1769144169866,-183.05820001,0.00013699,2]
[403087096,1769144173436,-188.78233432,0.00013699,2]
[403087097,1769144173797,500.0,0.00013273,2]
[403087098,1769144175398,300.0,0.00013673,2]
[403087099,1769144176027,-129.7115593,0.00013699,2]
[403087100,1769144176048,-186.05702738,0.00013699,2]
[403087101,1769144176831,5000.0,0.0001369,2]
[403087102,1769144177616,-166.44951346,0.00013699,2]
[403087103,1769144179079,-147.49345916,0.00013699,2]
[403087104,1769144179100,-10.53735649,0.00013699,2]
[403087105,1769144181452,-233.0507849,0.00013699,2]
[403087106,1769144181473,-500.0,0.00013699,2]
[403087107,1769144181712,-30.91270705,0.00013699,2]
[403087109,1769144183575,-174.61951844,0.00013699,2]
[403087110,1769144185708,-275.36904212,0.00013699,2]
[403087111,1769144185776,250.017148,0.0001369,2]
[403087112,1769144187859,-19.09873239,0.00013699,2]
[403087113,1769144187881,-393.6047204,0.00013699,2]
[403087114,1769144190242,-106.3952796,0.00013699,2]
[403087115,1769144190262,-111.61946941,0.00013699,2]
[403087116,1769144192331,-341.2434867,0.00013699,2]
[403087117,1769144199084,-47.13704389,0.00013699,2]
[403087118,1769144199107,-159.23463296,0.00013699,2]
[403087119,1769144199281,5000.0,0.00013699,2]
[403087120,1769144200602,-340.76536704,0.00013699,2]
[403087121,1769144200625,-78.87085719,0.00013699,2]
[403087138,1769144207234,-351.58107923,0.00013699,2]
[403087139,1769144207502,4749.992852,0.00013699,2]
[403087140,1769144207530,250.007148,0.00013699,2]
[403087141,1769144210866,-151.85702194,0.00013699,2]
[403087142,1769144213189,-29.48691389,0.00013699,2]
[403087143,1769144213211,-159.34641739,0.00013699,2]
[403087144,1769144215719,764.5131148,0.00013699,2]
[403087145,1769144217684,-228.92096661,0.00013699,2]
[403087148,1769144222530,-111.732616,0.00013699,2]
[403087149,1769144222552,-50.49985116,0.00013699,2]
[403087151,1769144223339,5000.0,0.00013699,2]
[403087153,1769144226248,-250.83790504,0.00013699,2]
[403087155,1769144230037,-198.6622438,0.00013699,2]
[403087156,1769144230058,-84.31671065,0.00013699,2]
[403087157,1769144231323,3985.4897372,0.00013699,2]
[403087158,1769144231344,1014.5102628,0.00013699,2]
[403087159,1769144233560,500.0,0.00013273,2]
[403087161,1769144239099,5000.0,0.00013699,2]
[403087162,1769144240831,500.0,0.00013273,2]
[403087163,1769144241493,500.0,0.00013273,2]
[403087164,1769144243455,500.0,0.00013273,2]
[403087165,1769144243750,500.0,0.00013273,2]
[403087166,1769144247697,1485.4997372,0.00013699,2]
[403087167,1769144247721,3514.5002628,0.00013699,2]
[403087168,1769144255526,3463.34008054,0.00013699,2]
[403087169,1769144264035,3022.16965666,0.00013699,2]
[403087170,1769144264060,1977.83034334,0.00013699,2]
[403087171,1769144269262,-295.91,0.00013699,2]
[403087172,1769144271904,5000.0,0.00013699,2]
[403087173,1769144272673,-119.77328935,0.00013699,2]
[403087174,1769144272696,-149.30671065,0.00013699,2]
[403087175,1769144274540,-296.67570149,0.00013699,2]
[403087177,1769144279917,2639.71865915,0.00013699,2]
[403087178,1769144282437,300.0,0.00013698,2]
[403087179,1769144286449,82.46099751,0.00013273,2]
[403087180,1769144286473,417.53900249,0.00013273,2]
[403087181,1769144287648,817.17791627,0.00013699,2]
[403087182,1769144294740,500.0,0.00013273,2]
[403087183,1769144295761,5000.0,0.00013699,2]
[403087184,1769144296695,300.0,0.00013673,2]
[403087185,1769144312216,500.0,0.00013698,2]
[403087186,1769144312250,500.0,0.00013698,2]
[403087187,1769144312278,500.0,0.00013698,2]
[403087188,1769144312308,500.0,0.00013698,2]
[403087189,1769144312339,500.0,0.00013698,2]
[403087190,1769144312367,226.67559268,0.00013698,2]
[403087191,1769144312400,500.0,0.00013698,2]
[403087192,1769144312429,500.0,0.00013698,2]
[403087193,1769144312458,500.0,0.00013698,2]
[403087194,1769144312490,500.0,0.00013698,2]
[403087195,1769144312518,500.0,0.00013698,2]
[403087196,1769144312546,500.0,0.00013698,2]
[403087197,1769144312577,500.0,0.00013698,2]
[403087198,1769144312611,500.0,0.00013698,2]
[403087199,1769144312640,500.0,0.00013698,2]
[403087200,1769144312668,500.0,0.00013698,2]
[403087201,1769144312695,500.0,0.00013698,2]
[403087202,1769144312728,500.0,0.00013698,2]
[403087203,1769144312755,500.0,0.00013698,2]
[403087204,1769144312787,522.74889696,0.00013698,2]
[403087205,1769144312815,250.58551036,0.00013698,2]
[403087206,1769144312839,249.41448964,0.00013698,2]
[403087207,1769144312869,500.0,0.00013698,2]
[403087208,1769144312898,500.0,0.00013698,2]
[403087209,1769144312934,500.0,0.00013698,2]
[403087210,1769144312969,191.48062914,0.00013698,2]
[403087211,1769144313012,500.0,0.00013698,2]
[403087212,1769144313047,500.0,0.00013698,2]
[403087213,1769144313078,500.0,0.00013698,2]
[403087214,1769144313114,500.0,0.00013698,2]
[403087215,1769144313394,500.0,0.00013698,2]
[403087216,1769144313428,500.0,0.00013698,2]
[403087217,1769144313460,500.0,0.00013698,2]
[403087218,1769144313491,500.0,0.00013698,2]
[403087219,1769144313521,500.0,0.00013698,2]
[403087220,1769144313549,500.0,0.00013698,2]
[403087221,1769144313578,500.0,0.00013698,2]
[403087222,1769144313701,-323.10670419,0.00013698,2]
[403087223,1769144317828,-176.89329581,0.00013698,2]
[403087224,1769144317854,-32.7770447,0.00013698,2]
[403087225,1769144321754,-151.65771311,0.00013561,2]
[403087227,1769144324612,-4848.34228689,0.00013561,2]
[403087228,1769144324809,-246.53221559,0.00013698,2]
[403087229,1769144326645,-153.33799328,0.00013698,2]
[403087230,1769144327782,-67.35274643,0.00013698,2]
[403087231,1769144327813,-500.0,0.00013698,2]
[403087232,1769144327844,-500.0,0.00013698,2]
[403087233,1769144327873,-500.0,0.00013698,2]
[403087234,1769144327903,-276.53552589,0.00013698,2]
[403087235,1769144327935,-500.0,0.00013698,2]
[403087236,1769144327966,-500.0,0.00013698,2]
[403087237,1769144328000,-500.0,0.00013698,2]
[403087238,1769144328034,-500.0,0.00013698,2]
[403087239,1769144328066,-392.62862974,0.00013698,2]
[403087240,1769144328097,-500.0,0.00013698,2]
[403087241,1769144328128,-26.97619588,0.00013698,2]
[403087242,1769144328536,-153.96684583,0.00013698,2]
[403087243,1769144330102,-250.00591092,0.00013698,2]
[403087244,1769144330826,-69.05104737,0.00013698,2]
[403087245,1769144330856,-500.0,0.00013698,2]
[403087246,1769144330888,-500.0,0.00013698,2]
[403087247,1769144330918,-500.0,0.00013698,2]
[403087248,1769144330946,-500.0,0.00013698,2]
[403087249,1769144330977,-500.0,0.00013698,2]
[403087250,1769144335115,4861.90790526,0.00013699,2]
[403087251,1769144335139,138.09209474,0.00013699,2]
[403087253,1769144342325,300.0,0.00013698,2]
[403087254,1769144343584,5000.0,0.00013699,2]
[403087255,1769144343617,-54.01758786,0.00013699,2]
[403087256,1769144343648,-500.0,0.00013699,2]
[403087257,1769144343677,-500.0,0.00013699,2]
[403087258,1769144343706,-304.77504743,0.00013699,2]
[403087259,1769144343736,-500.0,0.00013699,2]
[403087260,1769144343766,-411.61068939,0.00013699,2]
[403087261,1769144343796,-500.0,0.00013699,2]
[403087262,1769144343824,-500.0,0.00013699,2]
[403087263,1769144343853,-446.84779818,0.00013699,2]
[403087264,1769144343881,-500.0,0.00013699,2]
[403087265,1769144343909,-500.0,0.00013699,2]
[403087266,1769144343938,-65.50775428,0.00013699,2]
[403087267,1769144344127,-434.49224572,0.00013699,2]
[403087268,1769144344156,-500.0,0.00013699,2]
[403087269,1769144344184,-500.0,0.00013699,2]
[403087270,1769144344213,-500.0,0.00013699,2]
[403087271,1769144344243,-500.0,0.00013699,2]
[403087272,1769144344276,-500.0,0.00013699,2]
[403087273,1769144344305,-500.0,0.00013699,2]
[403087274,1769144344336,-500.0,0.00013699,2]
[403087275,1769144344365,-588.93831919,0.00013699,2]
[403087276,1769144344396,-220.78630622,0.00013699,2]
[403087277,1769144344426,-11.57625774,0.00013699,2]
[403087278,1769144344608,-488.42374226,0.00013699,2]
[403087279,1769144344637,-165.49560138,0.00013699,2]
[403087280,1769144344666,-500.0,0.00013699,2]
[403087281,1769144344695,-500.0,0.00013699,2]
[403087282,1769144344936,-500.0,0.00013699,2]
[403087283,1769144344966,-500.0,0.00013699,2]
[403087284,1769144344997,-150.95612442,0.00013699,2]
[403087285,1769144345025,-500.0,0.00013699,2]
[403087286,1769144345054,-500.0,0.00013699,2]
[403087287,1769144345083,-500.0,0.00013699,2]
[403087288,1769144345112,-500.0,0.00013699,2]
[403087289,1769144345140,-154.7598312,0.0001376,2]
[403087290,1769144345266,-500.0,0.00013699,2]
[403087291,1769144345310,-80.73940148,0.0001376,2]
[403087292,1769144345344,-1000.0,0.00013821,2]
[403087293,1769144345376,-1000.0,0.00013821,2]
[403087294,1769144345407,-669.67467589,0.00013821,2]
[403087295,1769144345438,-1000.0,0.00013821,2]
[403087296,1769144345468,-499.18184526,0.00013821,2]
[403087297,1769144345587,500.0,0.00013273,2]
[403087298,1769144349651,-500.81815474,0.00013821,2]
[403087299,1769144349680,-1000.0,0.00013821,2]
[403087300,1769144349710,-1000.0,0.00013821,2]
[403087301,1769144349739,-1000.0,0.00013821,2]
[403087302,1769144349769,-294.6811056,0.00013973,2]
[403087305,1769144358087,-300.0,0.00013273,2]
[403087306,1769144361857,-200.0,0.00013273,2]
[403087307,1769144361879,-109.72569957,0.00013273,2]
[403087308,1769144365324,-395.50426349,0.00013273,2]
[403087309,1769144365353,-500.0,0.00013273,2]
[403087310,1769144365381,-500.0,0.00013273,2]
[403087311,1769144365409,-451.49711237,0.00013699,2]
[403087312,1769144365446,-500.0,0.00013699,2]
[403087313,1769144365475,-500.0,0.00013699,2]
[403087314,1769144365506,-500.0,0.00013699,2]
[403087315,1769144365535,-500.0,0.00013699,2]
[403087316,1769144365562,-500.0,0.00013699,2]
[403087317,1769144365826,-500.0,0.00013699,2]
[403087318,1769144366127,-500.0,0.00013699,2]
[403087319,1769144366156,-500.0,0.00013699,2]
[403087320,1769144366186,-1000.0,0.00013821,2]
[403087321,1769144366216,-1014.08224453,0.00013821,2]
[403087322,1769144366245,-1000.0,0.00013821,2]
[403087323,1769144366444,307.2240708,0.0001314,2]
[403087324,1769144366529,-4692.7759292,0.0001314,2]
[403087325,1769144372041,-6555.06600477,0.0001399,2]
[403087326,1769144372104,-10000.01,0.0001399,2]
[403087327,1769144372118,-10000.01,0.0001399,2]
[403087328,1769144372134,-10000.01,0.0001399,2]
[403087329,1769144381131,-500.0,0.00013698,2]
[403087330,1769144381159,-208.82476903,0.00013698,2]
[403087331,1769144381191,-500.0,0.00013698,2]
[403087332,1769144381219,-336.62661638,0.00013698,2]
[403087333,1769144381247,-500.0,0.00013698,2]
[403087334,1769144381276,-500.0,0.00013698,2]
[403087335,1769144381304,-342.16834438,0.00013698,2]
[403087336,1769144381334,-500.0,0.00013698,2]
[403087337,1769144381368,-280.0261217,0.00013698,2]
[403087338,1769144381400,-500.0,0.00013698,2]
[403087339,1769144381432,-358.66746073,0.00013698,2]
[403087340,1769144381542,-5000.0,0.0001385,2]
[403087341,1769144381668,-947.38337556,0.0001399,2]
[403087342,1769144381683,-0.01,0.0001399,2]
[403087343,1769144396368,-5000.0,0.0001385,2]
[403087344,1769144396406,-0.01,0.0001399,2]
[403087345,1769144396496,-10000.01,0.0001399,2]
[403087346,1769144396636,-2964.85629084,0.0001399,2]
[403087347,1769144396664,-1011.81784455,0.00014121,2]
[403087348,1769144396692,-221.18424187,0.00014121,2]
[403087349,1769144396721,-600.0,0.00014221,2]
[403087350,1769144396796,-404.29324548,0.00014221,2]
[403087351,1769144396819,-10000.01,0.00014221,2]
[403087352,1769144396914,-10000.01,0.00014221,2]
[403087353,1769144415199,-5000.0,0.0001314,2]
[403087354,1769144415237,-0.01,0.00013273,2]
[403087355,1769144415321,-499.99,0.00013273,2]
[403087356,1769144415351,-500.0,0.00013273,2]
[403087357,1769144415393,-500.0,0.00013273,2]
[403087358,1769144415424,-500.0,0.00013273,2]
[403087359,1769144415456,-500.0,0.00013273,2]
[403087360,1769144415487,-500.0,0.00013273,2]
[403087361,1769144415518,-500.0,0.00013273,2]
[403087362,1769144415550,-500.0,0.00013273,2]
[403087363,1769144415579,-500.0,0.00013273,2]
[403087364,1769144415610,-500.0,0.00013273,2]
[403087365,1769144415812,-0.01,0.00013699,2]
[403087366,1769144415826,-0.03,0.00013699,2]
[403087367,1769144421728,-500.0,0.00013273,2]
[403087368,1769144421759,-300.0,0.00013673,2]
[403087369,1769144421789,-499.96,0.00013699,2]
[403087370,1769144421817,-567.07524167,0.00013699,2]
[403087371,1769144421848,-475.24416062,0.00013699,2]
[403087372,1769144421877,-500.0,0.00013699,2]
[403087373,1769144421908,-500.0,0.00013699,2]
[403087374,1769144421938,-500.0,0.00013699,2]
[403087375,1769144421969,-500.0,0.00013699,2]
[403087376,1769144421999,-500.0,0.00013699,2]
[403087377,1769144422192,-315.45119542,0.00013699,2]
[403087378,1769144424352,-184.54880458,0.00013699,2]
[403087379,1769144424382,-500.0,0.00013699,2]
[403087380,1769144424411,-500.0,0.00013699,2]
[403087381,1769144424445,-500.0,0.00013699,2]
[403087382,1769144424482,-1200.0,0.0001382,2]
[403087383,1769144424510,-1000.0,0.00013821,2]
[403087384,1769144424539,-1000.0,0.00013821,2]
[403087385,1769144424659,-230.91239084,0.00013821,2]
[403087387,1769144435435,5000.0,0.00013691,2]
[403087388,1769144443444,834.03674232,0.00013691,2]
[403087389,1769144448002,-213.89327659,0.00013698,2]
[403087390,1769144450710,-160.04426124,0.00013698,2]
[403087391,1769144454266,-126.06246217,0.00013698,2]
[403087392,1769144454292,-59.7651285,0.00013698,2]
[403087393,1769144457629,-230.35618627,0.00013698,2]
[403087394,1769144458821,2782.3134726,0.00013698,2]
[403087395,1769144463129,-182.38923898,0.00013698,2]
[403087396,1769144463438,300.0,0.00013697,2]
[403087397,1769144463656,501.46601283,0.00013273,2]
[403087398,1769144463719,500.0,0.00013273,2]
[403087399,1769144465205,-27.48944625,0.00013698,2]